bitfinex-derivatives/quotes_BTCF0:USTF0_20241025
["timestamp","ask_amount","ask_price","bid_price","bid_amount"]
[1729854707167,0.0315,67968.0,67965.0,0.45765086]
[1729854707367,0.0315,67968.0,67967.0,0.073605]
[1729854707558,0.124346,67968.0,67967.0,0.073605]
[1729854708362,0.124346,67968.0,67967.0,0.11755944]
[1729854708561,0.124346,67968.0,67967.0,0.073605]
[1729854709457,0.092846,67968.0,67967.0,0.073605]
[1729854710060,0.45875153,67974.0,67973.0,0.073599]
[1729854710361,0.55039752,67974.0,67973.0,0.073599]
[1729854710557,0.527243,67974.0,67973.0,0.073599]
[1729854710766,0.434397,67974.0,67973.0,0.073599]
[1729854710968,0.527243,67974.0,67973.0,0.073599]
[1729854712058,0.3608,67974.0,67973.0,0.073599]
[1729854712262,0.092846,67987.0,67986.0,0.073585]
[1729854712566,0.073588,67984.0,67983.0,0.073587]
[1729854712759,0.25928,67984.0,67983.0,0.073587]
[1729854713464,0.25928,67984.0,67980.0,0.073588]
[1729854713465,0.073591,67981.0,67980.0,0.073588]
[1729854713667,0.092846,67981.0,67980.0,0.073588]
[1729854714168,0.198436,67981.0,67980.0,0.073588]
[1729854714359,0.073594,67978.0,67977.0,0.073594]
[1729854714562,0.16644,67978.0,67977.0,0.073594]
[1729854716165,0.073596,67975.0,67973.0,0.3608]
[1729854716379,0.073596,67975.0,67973.0,0.434399]
[1729854716380,0.092846,67974.0,67973.0,0.434399]
[1729854716861,0.073596,67975.0,67974.0,0.073597]
[1729854717064,0.166442,67975.0,67974.0,0.073597]
[1729854717260,0.0323,67980.0,67975.0,0.073596]
[1729854717563,0.092846,67976.0,67973.0,0.3608]
[1729854718069,0.073596,67975.0,67974.0,0.073597]
[1729854719074,0.092846,67976.0,67975.0,0.073596]
[1729854719266,0.092846,67976.0,67972.0,0.3608]
[1729854719570,0.073593,67979.0,67976.0,0.073595]
[1729854719771,0.092846,67977.0,67972.0,0.3608]
[1729854720072,0.0736,67972.0,67971.0,0.0736]
[1729854720275,0.3608,67975.0,67968.0,0.11747597]
[1729854720276,0.073603,67969.0,67968.0,0.11747597]
[1729854720570,0.073602,67970.0,67965.0,0.073607]
[1729854720774,0.092846,67966.0,67965.0,0.073607]
[1729854721678,0.092846,67966.0,67960.0,0.0438756]
[1729854721884,0.073609,67964.0,67963.0,0.073609]
[1729854722170,0.16402016,67964.0,67963.0,0.073609]
[1729854722564,0.09041116,67964.0,67963.0,0.073609]
[1729854722974,0.18325716,67964.0,67963.0,0.073609]
[1729854723765,0.25686516,67964.0,67963.0,0.073609]
[1729854723962,0.18325716,67964.0,67963.0,0.073609]
[1729854724167,0.25686516,67964.0,67963.0,0.073609]
[1729854724369,0.073613,67961.0,67959.0,0.073613]
[1729854724671,0.18325716,67960.0,67959.0,0.073613]
[1729854724868,0.26860446,67960.0,67959.0,0.073613]
[1729854725068,0.21365716,67960.0,67959.0,0.073613]
[1729854725276,0.16508274,67960.0,67959.0,0.073613]
[1729854725472,0.16508274,67960.0,67957.0,0.434416]
[1729854725473,0.073615,67958.0,67957.0,0.434416]
[1729854725667,0.16358299,67958.0,67957.0,0.434416]
[1729854726362,0.16315958,67958.0,67957.0,0.434416]
[1729854727176,0.16315958,67958.0,67957.0,0.073616]
[1729854727572,0.21781379,67958.0,67957.0,0.073616]
[1729854728265,0.08954458,67958.0,67957.0,0.073616]
[1729854728665,0.16315958,67958.0,67957.0,0.073616]
[1729854728864,0.21769003,67958.0,67957.0,0.073616]
[1729854729674,0.21769003,67958.0,67949.0,0.454446]
[1729854729675,0.08954458,67958.0,67949.0,0.3616]
[1729854729880,0.073617,67956.0,67954.0,0.073619]
[1729854730071,0.073617,67956.0,67955.0,0.179683]
[1729854730275,0.0329,67957.0,67955.0,0.09176929]
[1729854730473,0.106516,67957.0,67956.0,0.09176929]
[1729854730977,0.106516,67957.0,67956.0,0.09178098]
[1729854731380,0.292208,67957.0,67956.0,0.09178098]
[1729854732279,0.292208,67957.0,67956.0,0.16503964]
[1729854732476,0.292208,67957.0,67956.0,0.09178098]
[1729854732683,0.31530475,67957.0,67956.0,0.09178098]
[1729854732977,0.12961275,67957.0,67956.0,0.16503366]
[1729854733169,0.31530475,67957.0,67956.0,0.07325268]
[1729854733371,0.073617,67956.0,67955.0,0.14687068]
[1729854733677,0.073617,67956.0,67955.0,0.2386191]
[1729854733874,0.073617,67956.0,67955.0,0.16536642]
[1729854734471,0.073617,67956.0,67955.0,0.23859864]
[1729854735371,0.073617,67956.0,67955.0,0.23861942]
[1729854735566,0.073617,67956.0,67955.0,0.07323222]
[1729854735776,0.073617,67956.0,67955.0,0.073618]
[1729854736484,0.073617,67956.0,67955.0,0.16534834]
[1729854736779,0.166463,67956.0,67955.0,0.23856657]
[1729854737168,0.166463,67956.0,67955.0,0.073618]
[1729854737568,0.073617,67956.0,67955.0,0.073618]
[1729854738274,0.166463,67956.0,67955.0,0.073618]
[1729854739474,0.166463,67956.0,67952.0,0.07362]
[1729854739475,0.073622,67953.0,67952.0,0.07362]
[1729854739676,0.166468,67953.0,67952.0,0.07362]
[1729854741180,0.092846,67953.0,67952.0,0.07362]
[1729854741380,0.166466,67953.0,67952.0,0.07362]
[1729854743184,0.092846,67953.0,67952.0,0.07362]
[1729854743681,0.166466,67953.0,67952.0,0.07362]
[1729854745090,0.166466,67953.0,67952.0,0.25331093]
[1729854745388,0.166466,67953.0,67952.0,0.16543127]
[1729854745590,0.166466,67953.0,67952.0,0.16547505]
[1729854747279,0.092846,67953.0,67952.0,0.27502872]
[1729854747690,0.166466,67953.0,67952.0,0.27502872]
[1729854749286,0.07362,67953.0,67952.0,0.27502872]
[1729854750086,0.07362,67953.0,67952.0,0.2752778]
[1729854750488,0.092846,67955.0,67954.0,0.073619]
[1729854750791,0.166464,67955.0,67954.0,0.16561778]
[1729854752200,0.05599675,67957.0,67956.0,0.073617]
[1729854752389,0.22245875,67957.0,67956.0,0.073617]
[1729854753989,0.26355655,67957.0,67956.0,0.073617]
[1729854754996,0.22245875,67957.0,67956.0,0.073617]
[1729854757095,0.263664,67957.0,67956.0,0.073617]
[1729854759895,0.22245875,67957.0,67956.0,0.073617]
[1729854760096,0.22245875,67957.0,67956.0,0.25368045]
[1729854761303,0.22245875,67957.0,67956.0,0.16562764]
[1729854761491,0.22245875,67957.0,67956.0,0.2753206]
[1729854764406,0.22245875,67957.0,67956.0,0.27530768]
[1729854764703,0.22245875,67957.0,67956.0,0.16563078]
[1729854765293,0.22245875,67957.0,67956.0,0.073617]
[1729854765493,0.22245875,67957.0,67956.0,0.16562034]
[1729854765706,0.22245875,67957.0,67956.0,0.25380977]
[1729854765903,0.22245875,67957.0,67956.0,0.16562034]
[1729854766399,1.21039075,67957.0,67948.0,0.00149587]
[1729854766703,0.073626,67948.0,67935.0,0.10244783]
[1729854766914,0.07364,67935.0,67934.0,0.07364]
[1729854767099,0.092846,67936.0,67935.0,0.07364]
[1729854767295,0.166485,67936.0,67935.0,0.07364]
[1729854767494,0.166485,67936.0,67934.0,0.07346366]
[1729854767495,0.07364,67935.0,67934.0,0.07346366]
[1729854767896,0.07364,67935.0,67934.0,0.14710466]
[1729854768306,0.07364,67935.0,67934.0,0.073641]
[1729854768809,0.073641,67934.0,67933.0,0.50870466]
[1729854769012,0.166485,67936.0,67935.0,0.07364]
[1729854769306,0.073641,67934.0,67933.0,0.43444]
[1729854769908,0.073641,67934.0,67933.0,0.45746992]
[1729854770406,0.073641,67934.0,67933.0,0.38382992]
[1729854770796,0.073641,67934.0,67933.0,0.45747192]
[1729854772098,0.073641,67934.0,67933.0,0.38382992]
[1729854772295,0.073641,67934.0,67933.0,0.3608]
[1729854773202,0.073641,67934.0,67933.0,0.41946677]
[1729854773506,0.166487,67934.0,67933.0,0.41946677]
[1729854773904,0.073641,67934.0,67933.0,0.41946677]
[1729854774097,0.166487,67934.0,67933.0,0.41946677]
[1729854774906,0.073641,67934.0,67933.0,0.3608]
[1729854775108,0.166487,67934.0,67933.0,0.40478022]
[1729854775312,0.166487,67934.0,67933.0,0.3608]
[1729854776616,0.073641,67934.0,67933.0,0.3608]
[1729854777009,0.166487,67934.0,67933.0,0.3608]
[1729854784209,0.166487,67934.0,67933.0,0.4193884]
[1729854784421,0.166487,67934.0,67933.0,0.3608]
[1729854784624,0.166487,67934.0,67933.0,0.41938843]
[1729854785118,0.166487,67934.0,67933.0,0.3608]
[1729854785724,0.166487,67934.0,67933.0,0.41940185]
[1729854786120,0.166487,67934.0,67933.0,0.41940408]
[1729854786319,0.166487,67934.0,67933.0,0.3608]
[1729854786834,0.166487,67934.0,67933.0,0.41940961]
[1729854787036,0.073641,67934.0,67933.0,0.3608]
[1729854787231,0.166487,67934.0,67933.0,0.3608]
[1729854787436,0.073641,67934.0,67933.0,0.3608]
[1729854787739,0.166487,67934.0,67933.0,0.3608]
[1729854789132,0.073641,67934.0,67933.0,0.434442]
[1729854789432,0.166487,67934.0,67933.0,0.434442]
[1729854790131,0.166487,67934.0,67933.0,0.45562808]
[1729854790334,0.166487,67934.0,67933.0,0.434442]
[1729854790532,0.073625,67949.0,67933.0,0.895246]
[1729854790736,0.073625,67949.0,67945.0,0.073629]
[1729854790737,0.04273764,67948.0,67945.0,0.073629]
[1729854791036,0.092846,67946.0,67945.0,0.073629]
[1729854791330,0.2093897,67946.0,67945.0,0.073629]
[1729854793833,0.073628,67946.0,67945.0,0.073629]
[1729854794136,0.166474,67946.0,67945.0,0.073629]
[1729854794635,0.20944034,67946.0,67945.0,0.073629]
[1729854795631,0.04296634,67946.0,67945.0,0.073629]
[1729854795832,0.092846,67969.0,67959.0,0.073614]
[1729854796034,0.092846,67960.0,67959.0,0.073614]
[1729854796635,0.073609,67963.0,67962.0,0.07361]
[1729854796831,0.166455,67963.0,67962.0,0.07361]
[1729854798831,0.073609,67963.0,67962.0,0.07361]
[1729854799342,0.092846,67963.0,67962.0,0.07361]
[1729854802339,0.073607,67965.0,67964.0,0.073608]
[1729854803644,0.092846,67969.0,67964.0,0.092846]
[1729854803845,0.0945,67975.0,67964.0,0.092846]
[1729854803846,0.073601,67971.0,67964.0,0.092846]
[1729854804041,0.073601,67971.0,67970.0,0.073602]
[1729854806245,0.166447,67971.0,67970.0,0.073602]
[1729854808050,0.073601,67971.0,67970.0,0.073602]
[1729854808344,0.166447,67971.0,67970.0,0.073602]
[1729854812251,0.31746366,67971.0,67968.0,0.3165479]
[1729854812449,0.11749417,67975.0,67969.0,0.073603]
[1729854812450,0.15101666,67970.0,67969.0,0.073603]
[1729854812751,0.04335646,67970.0,67969.0,0.073603]
[1729854814548,0.04284095,67970.0,67969.0,0.073603]
[1729854817548,0.14932167,67975.0,67969.0,0.073603]
[1729854817752,0.073595,67976.0,67972.0,0.092846]
[1729854817753,0.09264373,67974.0,67972.0,0.092846]
[1729854817956,0.09264369,67973.0,67972.0,0.166446]
[1729854819151,0.04286982,67973.0,67972.0,0.0736]
[1729854819447,0.073599,67973.0,67972.0,0.0736]
[1729854819845,0.073599,67973.0,67968.0,0.33991795]
[1729854819846,0.092846,67973.0,67968.0,0.3165479]
[1729854820051,0.073607,67966.0,67961.0,0.073612]
[1729854820249,0.092846,67963.0,67962.0,0.07361]
[1729854821651,0.092846,67963.0,67962.0,0.11757341]
[1729854821954,0.092846,67966.0,67965.0,0.073607]
[1729854822157,0.09634567,67970.0,67965.0,0.073607]
[1729854822158,0.166449,67970.0,67969.0,0.073603]
[1729854824360,0.073603,67969.0,67968.0,0.073603]
[1729854824858,0.073603,67969.0,67968.0,0.1175351]
[1729854825157,0.073603,67969.0,67968.0,0.073603]
[1729854827660,0.189406,67970.0,67969.0,0.073603]
[1729854828257,0.092846,67970.0,67969.0,0.073603]
[1729854829458,0.0233634,67974.0,67969.0,0.073603]
[1729854829459,0.092846,67977.0,67969.0,0.434403]
[1729854829659,0.0964397,67977.0,67976.0,0.073595]
[1729854829860,0.13907386,67977.0,67976.0,0.073595]
[1729854830670,0.23191986,67977.0,67976.0,0.073595]
[1729854830870,0.32847986,67977.0,67976.0,0.073595]
[1729854831052,0.23563386,67977.0,67976.0,0.073595]
[1729854831361,0.0633,67980.0,67969.0,0.434403]
[1729854831556,0.073593,67978.0,67977.0,0.073592]
[1729854831864,0.30589097,67978.0,67977.0,0.073592]
[1729854833454,0.20933097,67978.0,67977.0,0.073592]
[1729854833655,0.30589097,67978.0,67977.0,0.073592]
[1729854834461,0.262999,67978.0,67977.0,0.073592]
[1729854834656,0.166439,67978.0,67977.0,0.073592]
[1729854834861,0.262999,67978.0,67977.0,0.073592]
[1729854835753,0.170153,67978.0,67977.0,0.073592]
[1729854835952,0.262999,67978.0,67977.0,0.073592]
[1729854836348,0.166439,67978.0,67977.0,0.073592]
[1729854836753,0.09656,67978.0,67977.0,0.073592]
[1729854836950,0.02296154,67980.0,67979.0,0.073592]
[1729854837155,0.09656,67986.0,67985.0,0.073586]
[1729854837760,0.08645576,67989.0,67988.0,0.073582]
[1729854837957,0.27586176,67989.0,67988.0,0.073582]
[1729854838352,0.27586176,67989.0,67988.0,0.13221555]
[1729854838558,0.17930176,67989.0,67988.0,0.13221555]
[1729854838857,0.27622176,67989.0,67988.0,0.13221555]
[1729854839258,0.27622176,67989.0,67988.0,0.073582]
[1729854839464,0.27622176,67989.0,67988.0,0.13221555]
[1729854840059,0.27622176,67989.0,67988.0,0.073582]
[1729854840365,0.27622176,67989.0,67988.0,0.13219451]
[1729854840666,0.34980276,67989.0,67988.0,0.13219451]
[1729854841164,0.18898276,67989.0,67988.0,0.13219451]
[1729854841367,0.28590276,67989.0,67988.0,0.073582]
[1729854842359,0.37897209,67989.0,67988.0,0.073582]
[1729854842963,0.28205209,67989.0,67988.0,0.073582]
[1729854843670,0.33901131,67989.0,67988.0,0.073582]
[1729854846163,0.33902127,67989.0,67988.0,0.073582]
[1729854847469,0.48586774,67989.0,67988.0,0.073582]
[1729854848166,0.33902127,67989.0,67988.0,0.073582]
[1729854848479,0.48586004,67989.0,67988.0,0.073582]
[1729854848967,0.33902127,67989.0,67988.0,0.073582]
[1729854849357,0.33902127,67989.0,67988.0,0.03160986]
[1729854850466,0.073585,67986.0,67985.0,0.11753668]
[1729854850672,0.166431,67986.0,67985.0,0.11753668]
[1729854851372,0.02255576,67989.0,67985.0,0.04395168]
[1729854851563,0.073585,67989.0,67988.0,0.073582]
[1729854851769,0.166431,67989.0,67988.0,0.073582]
[1729854860273,0.166431,67989.0,67988.0,0.11753368]
[1729854860471,0.166431,67989.0,67988.0,0.073582]
[1729854862074,0.166431,67989.0,67984.0,0.05860224]
[1729854862275,0.073586,67986.0,67985.0,0.073585]
[1729854863382,0.073586,67985.0,67984.0,0.05860224]
[1729854863566,0.073588,67983.0,67982.0,0.05860224]
[1729854863772,0.166434,67983.0,67982.0,0.05860224]
[1729854863967,0.166434,67983.0,67982.0,0.073589]
[1729854864466,0.166434,67983.0,67982.0,0.05860224]
[1729854864875,0.166434,67983.0,67982.0,0.13219124]
[1729854865577,0.166434,67983.0,67982.0,0.073589]
[1729854865578,0.32817018,67983.0,67982.0,0.073589]
[1729854865776,0.31396608,67983.0,67982.0,0.073589]
[1729854866373,0.073593,67979.0,67978.0,0.073592]
[1729854866578,0.166439,67979.0,67978.0,0.073592]
[1729854866876,0.31397108,67979.0,67978.0,0.073592]
[1729854868975,0.25797241,67979.0,67978.0,0.073592]
[1729854869282,0.31408189,67979.0,67978.0,0.073592]
[1729854869581,0.46128574,67979.0,67978.0,0.073592]
[1729854869780,0.46139148,67979.0,67978.0,0.073592]
[1729854870980,0.40531061,67979.0,67978.0,0.073592]
[1729854871183,0.25810676,67979.0,67978.0,0.073592]
[1729854872480,0.166439,67979.0,67978.0,0.27302465]
[1729854874791,0.166439,67979.0,67978.0,0.27302863]
[1729854877178,0.166439,67979.0,67978.0,0.19943663]
[1729854877488,0.166439,67979.0,67978.0,0.27302963]
[1729854880485,0.258139,67979.0,67978.0,0.073593]
[1729854880683,0.20887214,67979.0,67978.0,0.073593]
[1729854881087,0.25813905,67979.0,67978.0,0.073593]
[1729854881395,0.20887214,67979.0,67978.0,0.073593]
[1729854881778,0.25812912,67979.0,67978.0,0.073593]
[1729854884187,0.25810547,67979.0,67978.0,0.073593]
[1729854884895,0.20885662,67979.0,67978.0,0.073593]
[1729854885692,0.25808928,67979.0,67978.0,0.073593]
[1729854885893,0.166439,67979.0,67978.0,0.073593]
[1729854886094,0.166439,67979.0,67978.0,0.09660849]
[1729854886597,0.25814084,67979.0,67978.0,0.073593]
[1729854887493,0.166439,67979.0,67978.0,0.27309822]
[1729854889492,0.263919,67979.0,67978.0,0.27309822]
[1729854890603,0.263919,67979.0,67978.0,0.16460975]
[1729854891302,0.263919,67979.0,67978.0,0.27284026]
[1729854891800,0.166439,67979.0,67978.0,0.27284026]
[1729854892001,0.263919,67979.0,67978.0,0.19924726]
[1729854893700,0.263919,67979.0,67977.0,0.073594]
[1729854893887,0.263918,67979.0,67978.0,0.19921447]
[1729854894086,0.263918,67979.0,67978.0,0.27280747]
[1729854894491,0.166438,67979.0,67978.0,0.1644771]
[1729854894700,0.263918,67979.0,67978.0,0.1644771]
[1729854897599,0.263918,67979.0,67978.0,0.18749347]
[1729854898704,0.263918,67979.0,67978.0,0.2609188]
[1729854900206,0.263918,67979.0,67978.0,0.1644771]
[1729854900597,0.171072,67979.0,67978.0,0.18749346]
[1729854900797,0.263918,67979.0,67978.0,0.1644771]
[1729854901009,0.261678,67979.0,67978.0,0.1644771]
[1729854901305,0.261678,67979.0,67978.0,0.25257933]
[1729854901606,0.261678,67979.0,67978.0,0.25257857]
[1729854902601,0.41425179,67979.0,67978.0,0.073593]
[1729854903112,0.32140579,67979.0,67978.0,0.073593]
[1729854903406,0.14720385,67982.0,67981.0,0.07359]
[1729854903607,0.02327638,67983.0,67982.0,0.073589]
[1729854903816,0.092846,67983.0,67982.0,0.073589]
[1729854905496,0.073583,67988.0,67987.0,0.073581]
[1729854905698,0.261669,67988.0,67987.0,0.073581]
[1729854905902,0.305761,67988.0,67987.0,0.073581]
[1729854906098,0.210521,67988.0,67987.0,0.073581]
[1729854906298,0.305761,67988.0,67987.0,0.073581]
[1729854907702,0.35695251,67988.0,67987.0,0.073581]
[1729854908306,0.26171251,67988.0,67987.0,0.073581]
[1729854908510,0.35695251,67988.0,67987.0,0.073581]
[1729854909906,0.073589,67985.0,67984.0,0.073587]
[1729854910211,0.210527,67985.0,67984.0,0.073587]
[1729854910407,0.166435,67985.0,67984.0,0.073587]
[1729854915415,0.166435,67985.0,67981.0,0.49393397]
[1729854915416,0.073589,67982.0,67981.0,0.49393397]
[1729854915611,0.073589,67982.0,67981.0,0.434389]
[1729854915612,0.166435,67982.0,67981.0,0.434389]
[1729854916005,0.092846,67982.0,67981.0,0.434389]
[1729854917608,0.21057201,67982.0,67981.0,0.434389]
[1729854917801,0.32017042,67982.0,67981.0,0.434389]
[1729854918207,0.22732442,67982.0,67981.0,0.434389]
[1729854918416,0.32017042,67982.0,67981.0,0.434389]
[1729854918811,0.13698301,67982.0,67981.0,0.434389]
[1729854919204,0.24663874,67982.0,67981.0,0.434389]
[1729854919615,0.13698301,67982.0,67981.0,0.434389]
[1729854920316,0.24664166,67982.0,67981.0,0.434389]
[1729854921906,0.32023066,67982.0,67981.0,0.434389]
[1729854922111,0.35469132,67982.0,67981.0,0.434389]
[1729854922310,0.073591,67980.0,67979.0,0.073592]
[1729854922612,0.24681954,67980.0,67979.0,0.073592]
[1729854922813,0.32041054,67980.0,67979.0,0.073592]
[1729854924213,0.24681954,67980.0,67979.0,0.073592]
[1729854924610,0.13698301,67980.0,67979.0,0.073592]
[1729854924925,0.04413701,67980.0,67979.0,0.4800636]
[1729854925213,0.092846,67989.0,67979.0,0.4064716]
[1729854925513,0.092846,67989.0,67988.0,0.14699078]
[1729854925709,0.092846,67989.0,67988.0,0.073582]
[1729854925904,0.092846,67989.0,67988.0,0.14699078]
[1729854926105,0.166427,67989.0,67988.0,0.073582]
[1729854926913,0.09639217,67989.0,67988.0,0.073582]
[1729854927221,0.18923817,67989.0,67988.0,0.073582]
[1729854927522,0.18923817,67989.0,67988.0,0.14699078]
[1729854928411,0.18923817,67989.0,67988.0,0.073582]
[1729854928612,0.18923817,67989.0,67988.0,0.14699078]
[1729854928925,0.18923817,67989.0,67988.0,0.073582]
[1729854929919,0.18923817,67989.0,67988.0,0.14699078]
[1729854930719,0.18923817,67989.0,67988.0,0.1625682]
[1729854930916,0.11565717,67989.0,67988.0,0.23586533]
[1729854931115,0.11565717,67989.0,67988.0,0.59667032]
[1729854931414,0.11565717,67989.0,67988.0,0.52337319]
[1729854932525,0.11565717,67989.0,67988.0,0.434382]
[1729854932822,0.27133366,67989.0,67988.0,0.434382]
[1729854935119,0.49212231,67989.0,67988.0,0.434382]
[1729854935329,0.27133366,67989.0,67988.0,0.434382]
[1729854935527,0.21224362,67989.0,67988.0,0.434382]
[1729854935825,0.21198582,67989.0,67988.0,0.434382]
[1729854937632,0.28556682,67989.0,67988.0,0.434382]
[1729854939532,0.34454543,67989.0,67988.0,0.073582]
[1729854940419,0.11565717,67989.0,67988.0,0.073582]
[1729854940621,0.02281117,67989.0,67988.0,0.073582]
[1729854940826,0.092846,67989.0,67988.0,0.073582]
[1729854941128,0.092846,67989.0,67988.0,0.434382]
[1729854944036,0.166427,67989.0,67988.0,0.434382]
[1729854945027,0.092846,67989.0,67988.0,0.434382]
[1729854945228,0.166427,67989.0,67988.0,0.434382]
[1729854945428,0.092846,67989.0,67988.0,0.434382]
[1729854946538,0.166427,67989.0,67988.0,0.434382]
[1729854948435,0.092846,67989.0,67988.0,0.434382]
[1729854949437,0.166427,67989.0,67988.0,0.434382]
[1729854949743,0.11873438,67991.0,67990.0,0.07358]
[1729854950038,0.21158038,67991.0,67990.0,0.07358]
[1729854950227,0.21158038,67991.0,67990.0,0.13221203]
[1729854951036,0.11873438,67991.0,67990.0,0.07358]
[1729854951235,0.21158038,67991.0,67990.0,0.07358]
[1729854954232,0.28515938,67991.0,67990.0,0.07358]
[1729854954429,0.18955938,67991.0,67990.0,0.07358]
[1729854954635,0.28515938,67991.0,67990.0,0.07358]
[1729854954944,0.28515938,67991.0,67990.0,0.14685613]
[1729854955134,0.28515938,67991.0,67990.0,0.07358]
[1729854955644,0.44140694,67991.0,67990.0,0.07358]
[1729854956435,0.27222794,67991.0,67990.0,0.07358]
[1729854957240,0.17938194,67991.0,67990.0,0.07358]
[1729854957437,0.21292114,67991.0,67990.0,0.07358]
[1729854959742,0.21321906,67991.0,67990.0,0.07358]
[1729854960348,0.12037306,67991.0,67990.0,0.07358]
[1729854960848,0.17978848,67991.0,67990.0,0.07358]
[1729854961839,0.32699239,67991.0,67990.0,0.07358]
[1729854962646,0.02313438,67991.0,67990.0,0.26812489]
[1729854962953,0.092846,67992.0,67991.0,0.073579]
[1729854963135,0.092846,67992.0,67991.0,0.26818894]
[1729854963335,0.11598207,67992.0,67991.0,0.26818894]
[1729854964642,0.11598207,67992.0,67991.0,0.16236246]
[1729854966751,0.11598207,67992.0,67991.0,0.26822598]
[1729854967848,0.02313607,67992.0,67991.0,0.26824689]
[1729854968044,0.15548,67993.0,67992.0,0.073578]
[1729854968045,0.06,67993.0,67992.0,0.073578]
[1729854968245,0.152846,67993.0,67992.0,0.26824589]
[1729854968637,0.226423,67993.0,67992.0,0.26824589]
[1729854969144,0.152846,67993.0,67992.0,0.26824589]
[1729854969345,0.17577029,67993.0,67992.0,0.26826544]
[1729854969752,0.17577029,67993.0,67992.0,0.1623879]
[1729854970539,0.22073832,67993.0,67992.0,0.073578]
[1729854972549,0.22073517,67993.0,67992.0,0.09658834]
[1729854972750,0.22073517,67993.0,67992.0,0.1195986]
[1729854972956,0.22073517,67993.0,67992.0,0.09658826]
[1729854973148,0.22073517,67993.0,67992.0,0.073578]
[1729854974052,0.27289504,67993.0,67992.0,0.073578]
[1729854974650,0.34647204,67993.0,67992.0,0.073578]
[1729854974957,0.22073517,67993.0,67992.0,0.073578]
[1729854976449,0.33217318,67993.0,67992.0,0.073578]
[1729854976957,0.40575018,67993.0,67992.0,0.073578]
[1729854977258,0.40565645,67993.0,67992.0,0.073578]
[1729854977559,0.40565645,67993.0,67992.0,0.16234796]
[1729854977560,0.24934729,67993.0,67992.0,0.16234796]
[1729854978855,0.24934729,67993.0,67992.0,0.08876996]
[1729854979055,0.24934729,67993.0,67992.0,0.16217726]
[1729854979258,0.24934729,67993.0,67992.0,0.08885976]
[1729854979559,0.31224729,67993.0,67992.0,0.08885976]
[1729854980157,0.31224729,67993.0,67992.0,0.16219369]
[1729854980355,0.073578,67992.0,67991.0,0.07333393]
[1729854980562,0.166424,67992.0,67991.0,0.16218468]
[1729854980755,0.166424,67992.0,67991.0,0.23576368]
[1729854982261,0.166424,67992.0,67991.0,0.16242975]
[1729854985453,0.166424,67992.0,67991.0,0.14691393]
[1729854985663,0.166424,67992.0,67991.0,0.073579]
[1729854991455,0.073578,67992.0,67991.0,0.09659018]
[1729854991660,0.17708429,67993.0,67991.0,0.02301118]
[1729854991861,0.092846,67992.0,67991.0,0.073579]
[1729854992067,0.17708429,67993.0,67992.0,0.073578]
[1729854992269,0.26993029,67993.0,67992.0,0.09658901]
[1729854992565,0.36703752,67993.0,67992.0,0.09658901]
[1729854992770,0.44061452,67993.0,67992.0,0.09658901]
[1729854992968,0.44061452,67993.0,67992.0,0.073578]
[1729854993655,0.44061452,67993.0,67992.0,0.09658947]
[1729854995066,0.38844256,67993.0,67992.0,0.09658947]
[1729854995267,0.38844256,67993.0,67992.0,0.073578]
[1729854995563,0.44034273,67993.0,67992.0,0.073578]
[1729854997363,0.34618273,67993.0,67992.0,0.073578]
[1729854997567,0.44034273,67993.0,67992.0,0.073578]
[1729854999667,0.38844256,67993.0,67992.0,0.073578]
[1729854999872,0.29428256,67993.0,67992.0,0.073578]
[1729855000068,0.38844256,67993.0,67992.0,0.073578]
[1729855000674,0.34350729,67993.0,67992.0,0.073578]
[1729855004067,0.34350729,67993.0,67992.0,0.0965897]
[1729855004277,0.34350729,67993.0,67992.0,0.073578]
[1729855005085,0.24934729,67993.0,67992.0,0.073578]
[1729855005284,0.34350729,67993.0,67992.0,0.073578]
[1729855006285,0.24934729,67993.0,67992.0,0.073578]
[1729855006583,0.34350729,67993.0,67992.0,0.073578]
[1729855007689,0.44014673,67993.0,67992.0,0.073578]
[1729855008880,0.56923735,67993.0,67992.0,0.073578]
[1729855009388,0.73120359,67993.0,67992.0,0.073578]
[1729855009586,0.73120358,67993.0,67992.0,0.073578]
[1729855009785,0.73139919,67993.0,67992.0,0.073578]
[1729855010184,0.49585596,67993.0,67992.0,0.073578]
[1729855010387,0.33155187,67993.0,67992.0,0.073578]
[1729855010577,0.49351299,67993.0,67992.0,0.073578]
[1729855011492,0.33155187,67993.0,67992.0,0.073578]
[1729855011998,0.47877684,67993.0,67992.0,0.073578]
[1729855012196,0.33155187,67993.0,67992.0,0.073578]
[1729855013398,0.23870587,67993.0,67992.0,0.073578]
[1729855014501,0.38589452,67993.0,67992.0,0.073578]
[1729855015100,0.23870587,67993.0,67992.0,0.073578]
[1729855015403,0.23947945,67993.0,67992.0,0.073578]
[1729855015604,0.08292429,67993.0,67992.0,0.23564178]
[1729855015908,0.08292429,67993.0,67992.0,0.14691293]
[1729855016604,0.08292429,67993.0,67992.0,0.073578]
[1729855016806,0.08292429,67993.0,67992.0,0.14691293]
[1729855017299,0.08292429,67993.0,67992.0,0.073578]
[1729855017899,0.08292429,67993.0,67992.0,0.166424]
[1729855018903,0.06,67993.0,67992.0,0.166424]
[1729855019408,0.06,67993.0,67992.0,0.25559175]
[1729855019799,0.06,67993.0,67992.0,0.16274575]
[1729855020005,0.152846,67993.0,67992.0,0.16274575]
[1729855020708,0.152846,67993.0,67992.0,0.2359973]
[1729855021298,0.152846,67993.0,67992.0,0.16247041]
[1729855021700,0.152846,67993.0,67992.0,0.073578]
[1729855022804,0.24939708,67993.0,67992.0,0.073578]
[1729855024103,0.19752392,67993.0,67992.0,0.073578]
[1729855025912,0.19752392,67993.0,67992.0,0.09658794]
[1729855027200,0.24937265,67993.0,67992.0,0.073578]
[1729855028413,0.073579,67991.0,67988.0,0.3608]
[1729855028713,0.092846,67989.0,67988.0,0.434382]
[1729855028899,0.18937265,67989.0,67988.0,0.434382]
[1729855029608,0.092846,67989.0,67988.0,0.52356018]
[1729855030004,0.092846,67989.0,67988.0,0.54657194]
[1729855031809,0.166427,67989.0,67988.0,0.54657194]
[1729855032412,0.166427,67989.0,67988.0,0.54657189]
[1729855032608,0.166427,67989.0,67988.0,0.52356018]